fUST/lending_fUST_20250817
["ID","MTS","AMOUNT","RATE_DAILY","PERIOD"]
[379887238,1755432645532,-532.3722477,0.000196,2]
[379887240,1755432645541,-460.81391095,0.000196,2]
[379887242,1755432645550,-461.9528322,0.000196,2]
[379887244,1755432645560,-480.0,0.000196,2]
[379887246,1755432645568,-480.0,0.000196,2]
[379887248,1755432645578,-480.0,0.000196,2]
[379887250,1755432645587,-480.0,0.000196,2]
[379887252,1755432645596,-441.63675354,0.000196,2]
[379887253,1755432645605,-480.0,0.000196,2]
[379887255,1755432645615,-480.0,0.000196,2]
[379887257,1755432645624,-480.0,0.000196,2]
[379887259,1755432645633,-464.57210559,0.000196,2]
[379887261,1755432645642,-480.0,0.000196,2]
[379887263,1755432645652,-480.0,0.000196,2]
[379887265,1755432645662,-460.0,0.000196,2]
[379887267,1755432645671,-480.0,0.000196,2]
[379887269,1755432645680,-480.0,0.000196,2]
[379887271,1755432645689,-199.57514523,0.000196,2]
[379887273,1755432645698,-480.0,0.000196,2]
[379887275,1755432645707,-480.0,0.000196,2]
[379887277,1755432645717,-480.0,0.000196,2]
[379887278,1755432645725,-480.0,0.000196,2]
[379887280,1755432645735,-243.55038834,0.000196,2]
[379887282,1755432645744,-480.0,0.000196,2]
[379887284,1755432645753,-500.0,0.00019609,2]
[379887286,1755432645763,-500.0,0.00019612,2]
[379887288,1755432645773,-500.0,0.00019621,2]
[379887290,1755432645782,-480.0,0.00019676,2]
[379887292,1755432645791,-480.0,0.00019677,2]
[379887294,1755432645800,-480.0,0.00019677,2]
[379887296,1755432645810,-1499.65,0.00019677,2]
[379887298,1755432645819,-1053.83,0.00019679,2]
[379887300,1755432645828,-480.0,0.00019679,2]
[379887302,1755432645837,-510.83,0.00019679,2]
[379887304,1755432645846,-466.67517717,0.00019679,2]
[379887306,1755432645855,-1350.16,0.00019679,2]
[379887308,1755432645864,-1942.59,0.00019679,2]
[379887310,1755432645876,-480.0,0.00019679,2]
[379887312,1755432645885,-1202.01,0.00019679,2]
[379887314,1755432645896,-480.0,0.00019679,2]
[379887316,1755432645905,-480.0,0.00019679,2]
[379887318,1755432645914,-600.24,0.00019679,2]
[379887320,1755432645923,-480.0,0.00019679,2]
[379887321,1755432645932,-841.63,0.00019679,2]
[379887323,1755432645941,-480.0,0.00019679,2]
[379887325,1755432645950,-480.0,0.0001968,2]
[379887327,1755432645959,-3081.23,0.0001968,2]
[379887329,1755432645968,-480.0,0.00019681,2]
[379887331,1755432645978,-480.0,0.00019681,2]
[379887333,1755432645987,-480.0,0.00019681,2]
[379887357,1755432646203,-448.17852833,0.00019681,2]
[379887359,1755432646213,-480.0,0.00019681,2]
[379887361,1755432646222,-460.0,0.00019681,2]
[379887363,1755432646231,-480.0,0.00019681,2]
[379887364,1755432646240,-480.0,0.00019681,2]
[379887366,1755432646249,-480.0,0.00019681,2]
[379887368,1755432646259,-480.0,0.00019681,2]
[379887370,1755432646268,-480.0,0.00019681,2]
[379887372,1755432646277,-460.0,0.00019681,2]
[379887374,1755432646286,-364.82527584,0.00019681,2]
[379887376,1755432646295,-440.0,0.00019681,2]
[379887378,1755432646304,-480.0,0.00019681,2]
[379887380,1755432646313,-480.0,0.00019681,2]
[379887382,1755432646323,-480.0,0.00019681,2]
[379887384,1755432646332,-480.0,0.00019681,2]
[379887386,1755432646344,-480.0,0.00019681,2]
[379887388,1755432646356,-480.0,0.00019681,2]
[379887390,1755432646365,-480.0,0.00019681,2]
[379887392,1755432646374,-460.0,0.00019681,2]
[379887405,1755432646494,-480.0,0.00019681,2]
[379887408,1755432646504,-480.0,0.00019681,2]
[379887410,1755432646514,-480.0,0.00019681,2]
[379887412,1755432646523,-480.0,0.00019681,2]
[379887413,1755432646534,-480.0,0.00019681,2]
[379887415,1755432646543,-1066.29,0.00019681,2]
[379887417,1755432646553,-494.92,0.00019681,2]
[379887419,1755432646562,-480.0,0.00019681,2]
[379887421,1755432646571,-230.75548675,0.00019681,2]
[379887423,1755432646580,-480.0,0.00019681,2]
[379887425,1755432646590,-480.0,0.00019681,2]
[379887427,1755432646599,-480.0,0.00019681,2]
[379887429,1755432646608,-480.0,0.00019681,2]
[379887431,1755432646617,-480.0,0.00019681,2]
[379887433,1755432646627,-460.0,0.00019681,2]
[379887435,1755432646636,-376.8698367,0.00019681,2]
[379887437,1755432646645,-480.0,0.00019681,2]
[379887439,1755432646654,-480.0,0.00019681,2]
[379887441,1755432646663,-465.45315405,0.00019681,2]
[379887443,1755432646673,-480.0,0.00019681,2]
[379887445,1755432646682,-480.0,0.00019681,2]
[379887447,1755432646692,-480.0,0.00019681,2]
[379887449,1755432646701,-480.0,0.00019681,2]
[379887451,1755432646710,-784.47,0.00019681,2]
[379887453,1755432646719,-480.0,0.00019681,2]
[379887455,1755432646728,-480.0,0.00019681,2]
[379887456,1755432646737,-2330.91,0.00019681,2]
[379887458,1755432646746,-480.0,0.00019681,2]
[379887461,1755432646758,-547.81,0.00019681,2]
[379887463,1755432646767,-480.0,0.00019681,2]
[379887464,1755432646776,-480.0,0.00019681,2]
[379887466,1755432646785,-495.16208974,0.00019681,2]
[379887468,1755432646794,-408.87812576,0.00019681,2]
[379887470,1755432646803,-480.0,0.00019681,2]
[379887472,1755432646813,-480.0,0.00019681,2]
[379887474,1755432646822,-249.2830476,0.00019681,2]
[379887476,1755432646831,-480.0,0.00019681,2]
[379887478,1755432646840,-480.0,0.00019681,2]
[379887480,1755432646849,-480.0,0.00019681,2]
[379887482,1755432646858,-460.0,0.00019681,2]
[379887484,1755432646867,-480.0,0.00019681,2]
[379887486,1755432646876,-480.0,0.00019681,2]
[379887488,1755432646885,-244.27,0.00019681,2]
[379887490,1755432646895,-480.0,0.00019681,2]
[379887492,1755432646904,-480.0,0.00019681,2]
[379887494,1755432646913,-480.0,0.00019681,2]
[379887496,1755432646922,-460.0,0.00019681,2]
[379887498,1755432646932,-480.0,0.00019681,2]
[379887500,1755432646942,-480.0,0.00019681,2]
[379887502,1755432646951,-480.0,0.00019681,2]
[379887504,1755432646960,-472.38883835,0.00019681,2]
[379887506,1755432646969,-480.0,0.00019681,2]
[379887508,1755432646979,-622.5,0.00019681,2]
[379887510,1755432646988,-480.0,0.00019681,2]
[379887512,1755432646997,-480.0,0.00019681,2]
[379887514,1755432647006,-552.58,0.00019681,2]
[379887516,1755432647015,-480.0,0.00019681,2]
[379887518,1755432647025,-386.67869876,0.00019681,2]
[379887520,1755432647034,-480.0,0.00019681,2]
[379887522,1755432647044,-962.79,0.00019681,2]
[379887524,1755432647053,-440.0,0.00019682,2]
[379887526,1755432647063,-480.0,0.00019682,2]
[379887528,1755432647072,-480.0,0.00019682,2]
[379887530,1755432647081,-480.0,0.00019682,2]
[379887532,1755432647090,-480.0,0.00019683,2]
[379887534,1755432647099,-494.21,0.00019683,2]
[379887536,1755432647108,-480.0,0.00019683,2]
[379887538,1755432647117,-773.7,0.00019683,2]
[379887540,1755432647127,-480.0,0.00019683,2]
[379887542,1755432647136,-6390.71,0.00019683,2]
[379887544,1755432647145,-840.69,0.00019683,2]
[379887546,1755432647154,-480.0,0.00019683,2]
[379887548,1755432647163,-480.0,0.00019683,2]
[379887550,1755432647173,-1299.43,0.00019683,2]
[379887552,1755432647182,-1819.43,0.00019683,2]
[379887554,1755432647191,-480.0,0.00019683,2]
[379887556,1755432647201,-820.66,0.00019683,2]
[379887558,1755432647210,-500.0,0.00019684,2]
[379887560,1755432647220,-812.51,0.00019684,2]
[379887562,1755432647229,-480.0,0.00019684,2]
[379887564,1755432647239,-480.0,0.00019684,2]
[379887566,1755432647248,-480.0,0.00019684,2]
[379887567,1755432647257,-480.0,0.00019684,2]
[379887569,1755432647266,-480.0,0.00019684,2]
[379887571,1755432647275,-480.0,0.00019684,2]
[379887573,1755432647284,-484.98184861,0.00019684,2]
[379887575,1755432647293,-440.0,0.00019684,2]
[379887577,1755432647303,-480.0,0.00019684,2]
[379887579,1755432647312,-480.0,0.00019684,2]
[379887581,1755432647321,-480.0,0.00019684,2]
[379887583,1755432647331,-480.0,0.00019684,2]
[379887585,1755432647343,-480.0,0.00019684,2]
[379887587,1755432647354,-480.0,0.00019684,2]
[379887589,1755432647363,-916.36,0.00019684,2]
[379887591,1755432647373,-480.0,0.00019684,2]
[379887593,1755432647383,-480.0,0.00019684,2]
[379887595,1755432647393,-480.0,0.00019684,2]
[379887597,1755432647403,-480.0,0.00019684,2]
[379887599,1755432647412,-480.0,0.00019684,2]
[379887601,1755432647422,-480.0,0.00019684,2]
[379887603,1755432647432,-480.0,0.00019684,2]
[379887605,1755432647441,-480.0,0.00019684,2]
[379887607,1755432647450,-480.0,0.00019684,2]
[379887609,1755432647460,-480.0,0.00019684,2]
[379887611,1755432647470,-480.0,0.00019684,2]
[379887613,1755432647479,-480.0,0.00019684,2]
[379887615,1755432647488,-480.0,0.00019684,2]
[379887616,1755432647498,-480.0,0.00019684,2]
[379887618,1755432647507,-653.69,0.00019684,2]
[379887620,1755432647516,-480.0,0.00019684,2]
[379887622,1755432647526,-480.0,0.00019684,2]
[379887624,1755432647535,-480.0,0.00019684,2]
[379887626,1755432647543,-480.0,0.00019684,2]
[379887628,1755432647553,-480.0,0.00019684,2]
[379887630,1755432647562,-1139.81,0.00019684,2]
[379887632,1755432647571,-480.0,0.00019684,2]
[379887634,1755432647580,-480.0,0.00019684,2]
[379887636,1755432647589,-660.47,0.00019684,2]
[379887638,1755432647599,-480.0,0.00019684,2]
[379887640,1755432647608,-480.0,0.00019684,2]
[379887642,1755432647617,-849.75,0.00019684,2]
[379887644,1755432647626,-480.0,0.00019684,2]
[379887646,1755432647635,-480.0,0.00019684,2]
[379887647,1755432647644,-480.0,0.00019684,2]
[379887648,1755432647654,-480.0,0.00019684,2]
[379887649,1755432647664,-652.28,0.00019684,2]
[379887650,1755432647674,-480.0,0.00019684,2]
[379887651,1755432647683,-480.0,0.00019684,2]
[379887652,1755432647692,-480.0,0.00019684,2]
[379887653,1755432647707,-151.0,0.00019719,2]
[379887654,1755432647717,-151.0,0.00019719,2]
[379887655,1755432647726,-151.0,0.00019719,2]
[379887656,1755432647736,-151.0,0.00019719,2]
[379887657,1755432647745,-151.0,0.00019719,2]
[379887658,1755432647754,-151.0,0.00019719,2]
[379887660,1755432647763,-229.57318661,0.00019719,2]
[379887662,1755432647773,-5483.35264719,0.00019719,2]
[379887664,1755432647782,-1000.0,0.00019719,2]
[379887666,1755432647790,-947.15995431,0.00019719,2]
[379887668,1755432647799,-241.91369617,0.00019722,2]
[379887670,1755432647808,-500.0,0.00019732,2]
[379887672,1755432647818,-1000.0,0.00019773,2]
[379887674,1755432647826,-460.0,0.00019784,2]
[379887676,1755432647835,-480.0,0.00019784,2]
[379887678,1755432647844,-480.0,0.00019784,2]
[379887680,1755432647853,-480.0,0.00019784,2]
[379887682,1755432647862,-480.0,0.00019784,2]
[379887684,1755432647871,-480.0,0.00019784,2]
[379887686,1755432647880,-400.0,0.00019784,2]
[379887688,1755432647889,-480.0,0.00019784,2]
[379887690,1755432647898,-480.0,0.00019784,2]
[379887692,1755432647907,-480.0,0.00019784,2]
[379887694,1755432647916,-480.0,0.00019784,2]
[379887696,1755432647926,-480.0,0.00019784,2]
[379887698,1755432647935,-480.0,0.00019784,2]
[379887700,1755432647945,-480.0,0.00019784,2]
[379887702,1755432647954,-480.0,0.00019784,2]
[379887704,1755432647963,-480.0,0.00019784,2]
[379887706,1755432647973,-480.0,0.00019784,2]
[379887708,1755432647982,-460.0,0.00019784,2]
[379887710,1755432647992,-480.0,0.00019784,2]
[379887712,1755432648002,-480.0,0.00019784,2]
[379887714,1755432648012,-480.0,0.00019784,2]
[379887716,1755432648021,-480.0,0.00019784,2]
[379887718,1755432648031,-480.0,0.00019784,2]
[379887720,1755432648040,-480.0,0.00019784,2]
[379887722,1755432648049,-480.0,0.00019784,2]
[379887724,1755432648059,-480.0,0.00019784,2]
[379887726,1755432648069,-480.0,0.00019784,2]
[379887728,1755432648078,-480.0,0.00019784,2]
[379887730,1755432648087,-422.7629711,0.00019784,2]
[379887732,1755432648096,-480.0,0.00019784,2]
[379887734,1755432648106,-480.0,0.00019784,2]
[379887736,1755432648116,-463.61807244,0.00019784,2]
[379887738,1755432648126,-480.0,0.00019784,2]
[379887740,1755432648135,-231.53048284,0.00019784,2]
[379887742,1755432648145,-460.0,0.00019784,2]
[379887744,1755432648154,-465.24067159,0.00019784,2]
[379887746,1755432648164,-480.0,0.00019784,2]
[379887748,1755432648173,-480.0,0.00019784,2]
[379887750,1755432648183,-480.0,0.00019784,2]
[379887752,1755432648194,-460.0,0.00019784,2]
[379887754,1755432648203,-462.23972485,0.00019784,2]
[379887756,1755432648214,-480.0,0.00019784,2]
[379887758,1755432648224,-480.0,0.00019784,2]
[379887760,1755432648233,-480.0,0.00019784,2]
[379887762,1755432648243,-480.0,0.00019784,2]
[379887764,1755432648253,-361.13926781,0.00019784,2]
[379887766,1755432648263,-480.0,0.00019784,2]
[379887768,1755432648274,-480.0,0.00019784,2]
[379887770,1755432648284,-480.0,0.00019784,2]
[379887772,1755432648293,-480.0,0.00019784,2]
[379887774,1755432648302,-480.0,0.00019784,2]
[379887776,1755432648313,-480.0,0.00019784,2]
[379887778,1755432648322,-320.0,0.00019784,2]
[379887780,1755432648332,-605.9051855,0.00019784,2]
[379887782,1755432648344,-480.0,0.00019784,2]
[379887784,1755432648354,-480.0,0.00019784,2]
[379887786,1755432648363,-235.28877279,0.00019784,2]
[379887788,1755432648373,-394.0493634,0.00019784,2]
[379887790,1755432648383,-440.0,0.00019784,2]
[379887792,1755432648394,-480.0,0.00019784,2]
[379887794,1755432648403,-480.0,0.00019784,2]
[379887796,1755432648413,-480.0,0.00019784,2]
[379887798,1755432648423,-480.0,0.00019784,2]
[379887800,1755432648433,-498.61747842,0.00019784,2]
[379887802,1755432648443,-480.0,0.00019784,2]
[379887804,1755432648452,-463.46612177,0.00019784,2]
[379887806,1755432648462,-440.0,0.00019784,2]
[379887808,1755432648471,-480.0,0.00019784,2]
[379887810,1755432648481,-480.0,0.00019784,2]
[379887812,1755432648491,-460.0,0.00019784,2]
[379887814,1755432648500,-460.0,0.00019784,2]
[379887816,1755432648511,-462.86741978,0.00019784,2]
[379887818,1755432648521,-480.0,0.00019784,2]
[379887820,1755432648530,-461.14848999,0.00019784,2]
[379887822,1755432648539,-480.0,0.00019784,2]
[379887824,1755432648549,-480.0,0.00019784,2]
[379887826,1755432648558,-480.0,0.00019784,2]
[379887828,1755432648567,-480.0,0.00019784,2]
[379887830,1755432648576,-480.0,0.00019784,2]
[379887832,1755432648585,-480.0,0.00019784,2]
[379887834,1755432648595,-480.0,0.00019784,2]
[379887836,1755432648604,-480.0,0.00019784,2]
[379887838,1755432648613,-480.0,0.00019784,2]
[379887840,1755432648623,-480.0,0.00019784,2]
[379887842,1755432648633,-402.99583468,0.00019784,2]
[379887844,1755432648644,-480.0,0.00019784,2]
[379887846,1755432648653,-480.0,0.00019784,2]
[379887848,1755432648662,-480.0,0.00019784,2]
[379887850,1755432648672,-480.0,0.00019784,2]
[379887852,1755432648681,-480.0,0.00019784,2]
[379887854,1755432648691,-480.0,0.00019784,2]
[379887856,1755432648701,-480.0,0.00019784,2]
[379887858,1755432648712,-480.0,0.00019784,2]
[379887860,1755432648721,-323.44115158,0.00019784,2]
[379887862,1755432648731,-480.0,0.00019784,2]
[379887864,1755432648740,-480.0,0.00019784,2]
[379887866,1755432648750,-480.0,0.00019784,2]
[379887868,1755432648759,-480.0,0.00019784,2]
[379887870,1755432648768,-480.0,0.00019784,2]
[379887872,1755432648778,-480.0,0.00019784,2]
[379887874,1755432648788,-480.0,0.00019784,2]
[379887876,1755432648797,-480.0,0.00019784,2]
[379887878,1755432648807,-480.0,0.00019784,2]
[379887880,1755432648820,-480.0,0.00019784,2]
[379887882,1755432648846,-480.0,0.00019784,2]
[379887884,1755432648863,-500.0,0.00019784,2]
[379887886,1755432648872,-480.0,0.00019784,2]
[379887897,1755432648995,-480.0,0.00019784,2]
[379887899,1755432649005,-480.0,0.00019784,2]
[379887901,1755432649015,-382.97208288,0.00019784,2]
[379887903,1755432649025,-480.0,0.00019784,2]
[379887905,1755432649034,-480.0,0.00019784,2]
[379887907,1755432649045,-480.0,0.00019784,2]
[379887909,1755432649054,-480.0,0.00019785,2]
[379887911,1755432649064,-500.0,0.00019785,2]
[379887913,1755432649074,-480.0,0.00019785,2]
[379887915,1755432649083,-443.96229288,0.00019785,2]
[379887917,1755432649093,-480.0,0.00019785,2]
[379887919,1755432649102,-480.0,0.00019785,2]
[379887921,1755432649112,-480.0,0.00019785,2]
[379887923,1755432649122,-480.0,0.00019785,2]
[379887925,1755432649131,-480.0,0.00019785,2]
[379887927,1755432649140,-480.0,0.00019785,2]
[379887929,1755432649150,-480.0,0.00019785,2]
[379887931,1755432649160,-480.0,0.00019785,2]
[379887933,1755432649169,-480.0,0.00019785,2]
[379887935,1755432649179,-480.0,0.00019785,2]
[379887937,1755432649188,-480.0,0.00019785,2]
[379887939,1755432649197,-357.20006894,0.00019785,2]
[379887941,1755432649206,-480.0,0.00019785,2]
[379887943,1755432649216,-480.0,0.00019785,2]
[379887945,1755432649225,-480.0,0.00019785,2]
[379887947,1755432649235,-480.0,0.00019785,2]
[379887949,1755432649245,-1090.54,0.00019785,2]
[379887950,1755432649254,-480.0,0.00019785,2]
[379887952,1755432649264,-480.0,0.00019785,2]
[379887954,1755432649275,-404.08609851,0.00019785,2]
[379887957,1755432649284,-480.0,0.00019785,2]
[379887958,1755432649293,-4841.57,0.00019785,2]
[379887960,1755432649303,-7041.82,0.00019785,2]
[379887962,1755432649312,-617.52627527,0.00019785,2]
[379887964,1755432649322,-1016.3,0.00019785,2]
[379887967,1755432649332,-480.0,0.00019785,2]
[379887969,1755432649345,-2313.08,0.00019786,2]
[379887971,1755432649354,-480.0,0.00019786,2]
[379887973,1755432649363,-200.0,0.00019797,20]
[379887975,1755432649372,-200.0,0.00019797,20]
[379887977,1755432649383,-200.0,0.00019797,20]
[379887979,1755432649392,-200.0,0.00019797,20]
[379887981,1755432649401,-200.0,0.00019797,20]
[379887983,1755432649410,-200.0,0.00019797,20]
[379887984,1755432649420,-200.0,0.00019797,20]
[379887987,1755432649430,-200.0,0.00019797,20]
[379887988,1755432649439,-200.0,0.00019797,20]
[379887991,1755432649450,-200.0,0.00019797,20]
[379887993,1755432649459,-600.0,0.00019797,20]
[379887995,1755432649469,-869.9342161,0.00019844,2]
[379887997,1755432649478,-241.236256,0.00019863,2]
[379887999,1755432649488,-500.0,0.00019872,2]
[379888001,1755432649497,-500.0,0.00019873,2]
[379888003,1755432649507,-500.0,0.00019873,2]
[379888005,1755432649517,-375.04,0.00019873,2]
[379888007,1755432649527,-671.96,0.00019873,2]
[379888009,1755432649536,-652.29,0.00019873,2]
[379888011,1755432649545,-579.9,0.00019873,2]
[379888013,1755432649554,-461.99479194,0.00019873,2]
[379888015,1755432649564,-480.0,0.00019873,2]
[379888017,1755432649573,-1696.46,0.00019873,2]
[379888019,1755432649583,-480.0,0.00019873,2]
[379888021,1755432649592,-480.0,0.00019874,2]
[379888023,1755432649601,-480.0,0.00019874,2]
[379888025,1755432649610,-480.0,0.00019874,2]
[379888027,1755432649619,-480.0,0.00019874,2]
[379888029,1755432649629,-480.0,0.00019874,2]
[379888031,1755432649640,-165.031108,0.00019874,2]
[379888032,1755432649649,-480.0,0.00019874,2]
[379888034,1755432649658,-480.0,0.00019874,2]
[379888037,1755432649668,-480.0,0.00019874,2]
[379888039,1755432649677,-480.0,0.00019874,2]
[379888041,1755432649686,-480.0,0.00019874,2]
[379888043,1755432649695,-480.0,0.00019874,2]
[379888045,1755432649706,-224.126508,0.00019874,2]
[379888047,1755432649715,-224.126508,0.00019874,2]
[379888049,1755432649724,-480.0,0.00019874,2]
[379888050,1755432649733,-42.55730682,0.00019874,2]
[379888070,1755432649905,-437.44269318,0.00019874,2]
[379888072,1755432649914,-62.55730682,0.00019874,2]
[379888278,1755432651872,-62.26419496,0.00019407,2]
[379888279,1755432651886,-417.73580504,0.00019407,2]
[379888280,1755432651896,-66.72055376,0.00019681,2]
[379888281,1755432651908,-413.27944624,0.00019681,2]
[379888282,1755432651917,-337.31974939,0.00019874,2]
[379888283,1755432651929,-80.12294379,0.00019874,2]
[379888284,1755432651939,-480.0,0.00019874,2]
[379888285,1755432651948,-460.73169431,0.00019874,2]
[379888286,1755432651958,-480.0,0.00019874,2]
[379888287,1755432651967,-480.0,0.00019874,2]
[379888288,1755432651977,-480.0,0.00019874,2]
[379888289,1755432651986,-167.4473619,0.00019874,2]
[379888291,1755432652003,-292.5526381,0.00019874,2]
[379888293,1755432652012,-279.3138424,0.00019874,2]
[379888302,1755432652090,-200.6861576,0.00019874,2]
[379888304,1755432652100,-480.0,0.00019874,2]
[379888306,1755432652110,-480.0,0.00019874,2]
[379888308,1755432652119,-480.0,0.00019874,2]
[379888310,1755432652129,-480.0,0.00019874,2]
[379888312,1755432652138,-480.0,0.00019874,2]
[379888314,1755432652147,-480.0,0.00019874,2]
[379888316,1755432652156,-480.0,0.00019874,2]
[379888318,1755432652167,-480.0,0.00019874,2]
[379888320,1755432652176,-3438.14142436,0.000199,2]
[379888322,1755432652186,-480.0,0.0001995,2]
[379888324,1755432652195,-480.0,0.00019951,2]
[379888326,1755432652204,-480.0,0.00019951,2]
[379888328,1755432652214,-509.20128127,0.00019951,2]
[379888335,1755432652266,-287.09701528,0.000194,2]
[379888337,1755432652275,-264.54724031,0.00019402,2]
[379888339,1755432652284,-480.0,0.00019405,2]
[379888340,1755432652293,-480.0,0.00019679,2]
[379888342,1755432652302,-990.44871873,0.00019951,2]
[379888344,1755432652312,-1053.83,0.00019953,2]
[379888346,1755432652321,-480.0,0.00019953,2]
[379888348,1755432652331,-510.83,0.00019953,2]
[379888350,1755432652341,-1350.16,0.00019953,2]
[379888352,1755432652352,-1942.59,0.00019953,2]
[379888354,1755432652361,-480.0,0.00019953,2]
[379888356,1755432652370,-1202.01,0.00019953,2]
[379888358,1755432652380,-480.0,0.00019953,2]
[379888360,1755432652389,-480.0,0.00019953,2]
[379888362,1755432652398,-600.24,0.00019953,2]
[379888364,1755432652408,-841.63,0.00019953,2]
[379888366,1755432652417,-480.0,0.00019953,2]
[379888368,1755432652427,-480.0,0.00019953,2]
[379888370,1755432652437,-480.0,0.00019954,2]
[379888372,1755432652446,-3081.23,0.00019954,2]
[379888374,1755432652456,-442.04194597,0.00019955,2]
[379888376,1755432652465,-480.0,0.00019955,2]
[379888378,1755432652474,-480.0,0.00019955,2]
[379888380,1755432652484,-480.0,0.00019955,2]
[379888382,1755432652493,-480.0,0.00019955,2]
[379888384,1755432652503,-480.0,0.00019955,2]
[379888386,1755432652512,-480.0,0.00019955,2]
[379888388,1755432652522,-450.31470181,0.00019955,2]
[379888390,1755432652531,-480.0,0.00019955,2]
[379888392,1755432652541,-462.26318492,0.00019955,2]
[379888394,1755432652550,-480.0,0.00019955,2]
[379888396,1755432652560,-502.15389296,0.00019955,2]
[379888398,1755432652569,-480.0,0.00019955,2]
[379888399,1755432652579,-480.0,0.00019955,2]
[379888401,1755432652588,-1066.29,0.00019955,2]
[379888403,1755432652597,-494.92,0.00019955,2]
[379888405,1755432652607,-480.0,0.00019955,2]
[379888407,1755432652616,-464.88236222,0.00019955,2]
[379888409,1755432652625,-480.0,0.00019955,2]
[379888411,1755432652634,-480.0,0.00019955,2]
[379888413,1755432652643,-480.0,0.00019955,2]
[379888415,1755432652653,-480.0,0.00019955,2]
[379888417,1755432652662,-460.0,0.00019955,2]
[379888419,1755432652671,-480.0,0.00019955,2]
[379888421,1755432652680,-480.0,0.00019955,2]
[379888423,1755432652689,-784.47,0.00019955,2]
[379888425,1755432652698,-480.0,0.00019955,2]
[379888427,1755432652708,-2330.91,0.00019955,2]
[379888429,1755432652717,-480.0,0.00019955,2]
[379888431,1755432652726,-547.81,0.00019955,2]
[379888433,1755432652735,-480.0,0.00019955,2]
[379888435,1755432652744,-480.0,0.00019955,2]
[379888437,1755432652753,-480.0,0.00019955,2]
[379888438,1755432652762,-480.0,0.00019955,2]
[379888440,1755432652771,-480.0,0.00019955,2]
[379888442,1755432652781,-480.0,0.00019955,2]
[379888444,1755432652790,-480.0,0.00019955,2]
[379888446,1755432652799,-480.0,0.00019955,2]
[379888448,1755432652809,-181.52359398,0.00019955,2]
[379888450,1755432652818,-622.5,0.00019955,2]
[379888452,1755432652827,-480.0,0.00019955,2]
[379888454,1755432652836,-552.58,0.00019955,2]
[379888456,1755432652845,-480.0,0.00019955,2]
[379888458,1755432652855,-480.0,0.00019955,2]
[379888460,1755432652865,-962.79,0.00019955,2]
[379888462,1755432652874,-480.0,0.00019955,2]
[379888464,1755432652883,-480.0,0.00019956,2]
[379888466,1755432652893,-480.0,0.00019956,2]
[379888468,1755432652902,-494.21,0.00019957,2]
[379888470,1755432652916,-480.0,0.00019957,2]
[379888472,1755432652926,-773.7,0.00019957,2]
[379888474,1755432652935,-480.0,0.00019957,2]
[379888476,1755432652944,-6390.71,0.00019957,2]
[379888478,1755432652953,-840.69,0.00019957,2]